[Event "IIFL Wealth 4th Mumbai Open"]
[Site "Mumbai"]
[Date "2019.01.03"]
[Round "5"]
[White "Sa, Kannan"]
[Black "Tejes Suresh Kumar"]
[Result "1-0"]
[ECO "A01"]
[WhiteElo "2069"]
[BlackElo "1618"]
[Annotator "NA"]
[PlyCount "119"]
[EventDate "2018.12.30"]
[EventType "swiss"]
[EventCountry "IND"]
[SourceTitle "playchess.com"]
[Source "ChessBase"]
[SourceQuality "1"]
[TimeControl "40/5400+30:1800+30"]

1. b3 {[%emt 0:07:32]} e5 {[%emt 0:00:06]} 2. Bb2 {[%emt 0:00:03]} Nc6 {[%emt 0:00:05]} 3. e3 {[%emt 0:00:12]} d5 {[%emt 0:01:05]} 4. Nf3 {[%emt 0:02:01]} Bd6 {[%emt 0:01:31]} 5. Bb5 {[%emt 0:00:14]} Bg4 {[%emt 0:04:25]} 6. h3 {[%emt 0:00:51]} Bxf3 {[%emt 0:01:36]} 7. Qxf3 {[%emt 0:00:03]} Nf6 {[%emt 0:00:19]} 8. c4 {[%emt 0:02:03]} O-O {[%emt 0:07:03]} 9. Bxc6 {[%emt 0:01:25]} bxc6 {[%emt 0:00:41]} 10. c5 {[%emt 0:00:36]} Bxc5 {[%emt 0:01:03]} 11. Bxe5 {[%emt 0:00:04]} Re8 {[%emt 0:01:16]} 12. Bxf6 {[%emt 0:00:38]} Qxf6 {[%emt 0:00:12]} 13. Qxf6 {[%emt 0:00:08]} gxf6 {[%emt 0:00:05]} 14. Nc3 {[%emt 0:02:01]} d4 {[%emt 0:02:02]} 15. Na4 {[%emt 0:00:22]} Ba3 {[%emt 0:01:23]} 16. Ke2 {[%emt 0:05:00]} Rad8 {[%emt 0:00:20]} 17. d3 {[%emt 0:00:48]} Re6 {[%emt 0:03:25]} 18. g4 {[%emt 0:02:27]} dxe3 {[%emt 0:10:28]} 19. fxe3 {[%emt 0:00:54]} Rde8 {[%emt 0:07:54]} 20. e4 {[%emt 0:00:40]} Rd8 {[%emt 0:00:07]} 21. Rhf1 {[%emt 0:01:07]} Red6 {[%emt 0:00:16]} 22. Rad1 {[%emt 0:01:41]} Rb8 {[%emt 0:03:54]} 23. Rf5 {[%emt 0:00:37]} Rb5 {[%emt 0:08:31]} 24. Rdf1 {[%emt 0:00:26]} Kg7 {[%emt 0:00:40]} 25. Nc3 {[%emt 0:01:58]} Rxf5 {[%emt 0:00:21]} 26. Rxf5 {[%emt 0:00:12]} Bb2 {[%emt 0:00:07]} 27. Kd2 {[%emt 0:00:48]} Ba3 {[%emt 0:08:04]} 28. Ra5 {[%emt 0:00:35]} Bb4 {[%emt 0:00:07]} 29. Rxa7 {[%emt 0:00:25]} f5 {[%emt 0:00:55]} 30. exf5 {[%emt 0:05:25]} Rh6 {[%emt 0:00:36]} 31. a3 {[%emt 0:00:19]} Bd6 {[%emt 0:00:56]} 32. Ne4 {[%emt 0:01:06]} Bf4+ {[%emt 0:03:46]} 33. Kc3 {[%emt 0:00:43]} Rxh3 {[%emt 0:00:05]} 34. Ra8 {[%emt 0:00:43]} Be5+ {[%emt 0:01:35]} 35. Kc4 {[%emt 0:00:13]} Rh4 {[%emt 0:01:25]} 36. g5 {[%emt 0:01:04]} f6 {[%emt 0:01:09]} 37. gxf6+ {[%emt 0:02:23]} Bxf6 {[%emt 0:00:41]} 38. Ra6 {[%emt 0:00:12]} Rf4 {[%emt 0:01:21]} 39. Rxc6 {[%emt 0:03:06]} Be5 {[%emt 0:00:32]} 40. a4 {[%emt 0:00:00]} h5 {[%emt 0:00:00]} 41. f6+ {[%emt 0:04:38]} Kf7 {[%emt 0:02:10]} 42. Rc5 {[%emt 0:00:29]} Bxf6 {[%emt 0:00:53]} 43. Rxh5 {[%emt 0:00:29]} Rf1 {[%emt 0:00:49]} 44. Nxf6 {[%emt 0:00:17]} Kxf6 {[%emt 0:00:14]} 45. Rc5 {[%emt 0:00:20]} Rc1+ {[%emt 0:00:29]} 46. Kb5 {[%emt 0:00:14]} Rb1 {[%emt 0:00:16]} 47. b4 {[%emt 0:00:12]} Rd1 {[%emt 0:00:09]} 48. Rxc7 {[%emt 0:00:26]} Rxd3 {[%emt 0:00:05]} 49. a5 {[%emt 0:00:10]} Rd5+ {[%emt 0:00:07]} 50. Kb6 {[%emt 0:00:06]} Rd4 {[%emt 0:00:32]} 51. b5 {[%emt 0:00:08]} Ke5 {[%emt 0:00:09]} 52. a6 {[%emt 0:00:14]} Rd6+ {[%emt 0:00:11]} 53. Kb7 {[%emt 0:00:10]} Rd5 {[%emt 0:00:06]} 54. b6 {[%emt 0:00:10]} Rd8 {[%emt 0:00:07]} 55. a7 {[%emt 0:00:17]} Kd6 {[%emt 0:00:05]} 56. Rc8 {[%emt 0:00:49]} Rd7+ {[%emt 0:00:08]} 57. Kb8 {[%emt 0:00:14]} Ke6 {[%emt 0:00:32]} 58. a8=Q {[%emt 0:00:10]} Rd6 {[%emt 0:00:05]} 59. Qe4+ {[%emt 0:00:20]} Kd7 {[%emt 0:00:37]} 60. Qe8# {[%emt 0:00:07]} 1-0

[Event "IIFL Wealth 4th Mumbai Open"]
[Site "Mumbai"]
[Date "2019.01.03"]
[Round "5"]
[White "Vahdatian, Davood"]
[Black "Tanuj, Dayal"]
[Result "1-0"]
[ECO "B43"]
[WhiteElo "2036"]
[BlackElo "1803"]
[Annotator "NA"]
[PlyCount "173"]
[EventDate "2018.12.30"]
[EventType "swiss"]
[EventCountry "IND"]
[SourceTitle "playchess.com"]
[Source "ChessBase"]
[SourceQuality "1"]
[TimeControl "40/5400+30:1800+30"]

1. e4 c5 2. Nf3 e6 3. d4 cxd4 4. Nxd4 a6 5. Nc3 Qc7 6. Bd3 Nf6 7. f4 Bb4 8. Bd2 d6 9. Qf3 Nc6 10. Nb3 Bxc3 11. Bxc3 e5 12. O-O O-O 13. f5 g6 14. g4 Bd7 15. Bd2 Kg7 16. Qg3 Qd8 17. Qh4 h5 18. gxh5 Nxh5 19. f6+ Kh7 20. Rf5 Bxf5 21. exf5 Kg8 22. Bg5 Nd4 23. Nxd4 Qb6 24. fxg6 Qxd4+ 25. Qxd4 exd4 26. Bc4 Rac8 27. gxf7+ Rxf7 28. Bxf7+ Kxf7 29. Re1 Kg6 30. h4 Ng3 31. Kf2 Nf5 32. Re2 Rh8 33. Re4 Rc8 34. Re2 Rh8 35. Rd2 Nxh4 36. Bxh4 Rxh4 37. Kg3 Re4 38. Kf3 Rh4 39. Kg3 Re4 40. Rf2 Kf7 41. Kf3 Re6 42. Rh2 Rxf6+ 43. Ke4 Ke6 44. Kxd4 Rf4+ 45. Kd3 Kd5 46. Rh8 Kc6 47. b3 Rg4 48. a3 Rg3+ 49. Kd4 Rg4+ 50. Kc3 Rg3+ 51. Kb4 Rg4+ 52. Ka5 Rg5+ 53. Ka4 Rg4+ 54. b4 Rg3 55. c3 Kc7 56. Kb3 Rg4 57. a4 Rf4 58. a5 Rg4 59. Rh6 Rf4 60. Kc2 Rf3 61. Rh4 Rg3 62. Rc4+ Kd7 63. Kb3 Rg1 64. Rh4 Rb1+ 65. Kc4 Kc6 66. Rh6 Rg1 67. Kb3 Rb1+ 68. Kc2 Rg1 69. c4 Kc7 70. b5 axb5 71. cxb5 Rg7 72. Kc3 Rf7 73. Rh5 Rg7 74. Kd4 Rg4+ 75. Kd5 Rg7 76. Ke6 Rg6+ 77. Kf5 Rg7 78. Kf6 Rg1 79. Rh7+ Kc8 80. Ke6 Re1+ 81. Kxd6 Rd1+ 82. Kc5 Rd8 83. Kb6 Rd6+ 84. Ka7 Rd1 85. Rxb7 Ra1 86. a6 Rh1 87. Rg7 1-0

[Event "IIFL Wealth 4th Mumbai Open"]
[Site "Mumbai"]
[Date "2019.01.03"]
[Round "5"]
[White "Thatte, Ashish P"]
[Black "Dhanvij Ansh"]
[Result "1/2-1/2"]
[ECO "A00"]
[WhiteElo "1957"]
[BlackElo "1523"]
[Annotator "NA"]
[PlyCount "80"]
[EventDate "2018.12.30"]
[EventType "swiss"]
[EventCountry "IND"]
[SourceTitle "playchess.com"]
[Source "ChessBase"]
[SourceQuality "1"]
[TimeControl "40/5400+30:1800+30"]

1. a3 {[%emt 0:00:54]} Nf6 {[%emt 0:00:00]} 2. Nf3 {[%emt 0:00:39]} b6 {[%emt 0:01:04]} 3. g3 {[%emt 0:00:52]} e6 {[%emt 0:00:17]} 4. Bg2 {[%emt 0:00:14]} Bb7 {[%emt 0:00:09]} 5. O-O {[%emt 0:00:07]} Be7 {[%emt 0:00:30]} 6. d3 {[%emt 0:02:14]} O-O {[%emt 0:00:30]} 7. Nbd2 {[%emt 0:01:04]} d6 {[%emt 0:00:49]} 8. Re1 {[%emt 0:02:49]} c5 {[%emt 0:00:11]} 9. e4 {[%emt 0:00:22]} Nbd7 {[%emt 0:03:22]} 10. b3 {[%emt 0:04:39]} b5 {[%emt 0:09:31]} 11. Bb2 {[%emt 0:00:22]} Rc8 {[%emt 0:00:55]} 12. Qe2 {[%emt 0:15:22]} a5 {[%emt 0:04:52]} 13. a4 {[%emt 0:12:37]} b4 {[%emt 0:01:52]} 14. e5 {[%emt 0:03:02]} dxe5 {[%emt 0:04:04]} 15. Nxe5 {[%emt 0:00:09]} Bxg2 {[%emt 0:00:16]} 16. Kxg2 {[%emt 0:00:16]} Nxe5 {[%emt 0:01:26]} 17. Bxe5 {[%emt 0:02:05]} Nd7 {[%emt 0:05:25]} 18. Rad1 {[%emt 0:05:37]} Nxe5 {[%emt 0:04:23]} 19. Qxe5 {[%emt 0:00:24]} Bf6 {[%emt 0:00:07]} 20. Qe4 {[%emt 0:01:03]} Bc3 {[%emt 0:00:50]} 21. Re3 {[%emt 0:06:02]} Bxd2 {[%emt 0:02:29]} 22. Rxd2 {[%emt 0:00:01]} Qd7 {[%emt 0:10:30]} 23. Rde2 {[%emt 0:03:56]} Rfd8 {[%emt 0:03:57]} 24. Kg1 {[%emt 0:08:20]} g6 {[%emt 0:05:21]} 25. h4 {[%emt 0:01:36]} Qc7 {[%emt 0:01:16]} 26. Qe5 {[%emt 0:18:38]} Qc6 {[%emt 0:01:29]} 27. Qf6 {[%emt 0:01:53]} Qd6 {[%emt 0:10:38]} 28. h5 {[%emt 0:01:19]} Qf8 {[%emt 0:00:47]} 29. Rf3 {[%emt 0:02:51]} Qg7 {[%emt 0:01:58]} 30. Qe7 {[%emt 0:00:19]} Rd5 {[%emt 0:01:37]} 31. Rxe6 {[%emt 0:01:58]} Rxh5 {[%emt 0:00:43]} 32. Qe8+ {[%emt 0:03:07]} Rxe8 {[%emt 0:00:36]} 33. Rxe8+ {[%emt 0:00:03]} Qf8 {[%emt 0:00:10]} 34. Rxf8+ {[%emt 0:00:32]} Kxf8 35. Rf6 {[%emt 0:00:02]} Re5 {[%emt 0:05:29]} 36. Rc6 {[%emt 0:00:08]} Ke7 {[%emt 0:04:35]} 37. Kf1 {[%emt 0:00:13]} Rh5 {[%emt 0:00:10]} 38. Ra6 {[%emt 0:00:15]} Rh1+ {[%emt 0:00:15]} 39. Ke2 {[%emt 0:01:59]} Rc1 {[%emt 0:00:15]} 40. Kd2 {[%emt 0:00:00]} Rf1 1/2-1/2

[Event "IIFL Wealth 4th Mumbai Open"]
[Site "Mumbai"]
[Date "2019.01.03"]
[Round "5"]
[White "Aditya, Varun Gampa"]
[Black "Deepak, Rai"]
[Result "1-0"]
[ECO "B07"]
[WhiteElo "1809"]
[BlackElo "1710"]
[Annotator "NA"]
[PlyCount "121"]
[EventDate "2018.12.30"]
[EventType "swiss"]
[EventCountry "IND"]
[SourceTitle "playchess.com"]
[Source "ChessBase"]
[SourceQuality "1"]
[TimeControl "40/5400+30:1800+30"]

1. e4 {[%emt 0:00:17]} d6 {[%emt 0:00:00]} 2. d4 {[%emt 0:00:16]} Nf6 {[%emt 0:00:09]} 3. Nc3 {[%emt 0:00:13]} Nbd7 {[%emt 0:00:22]} 4. g4 {[%emt 0:00:12]} h6 {[%emt 0:02:17]} 5. h3 {[%emt 0:00:28]} e5 {[%emt 0:02:42]} 6. Nge2 {[%emt 0:03:22]} b5 {[%emt 0:03:07]} 7. a3 {[%emt 0:01:45]} Bb7 {[%emt 0:04:11]} 8. Bg2 {[%emt 0:00:34]} a5 {[%emt 0:07:12]} 9. Ng3 {[%emt 0:03:20]} b4 {[%emt 0:06:49]} 10. Nce2 d5 {[%emt 0:06:53]} 11. exd5 {[%emt 0:04:06]} Bxd5 {[%emt 0:03:00]} 12. Bxd5 {[%emt 0:01:38]} Nxd5 {[%emt 0:00:19]} 13. axb4 {[%emt 0:02:17]} Bxb4+ {[%emt 0:10:23]} 14. c3 {[%emt 0:00:35]} Be7 {[%emt 0:00:28]} 15. O-O {[%emt 0:00:50]} O-O {[%emt 0:00:48]} 16. f4 {[%emt 0:06:18]} exf4 {[%emt 0:05:11]} 17. Nxf4 {[%emt 0:01:39]} N7b6 {[%emt 0:01:32]} 18. Nf5 {[%emt 0:02:39]} Bg5 {[%emt 0:03:25]} 19. Nxd5 {[%emt 0:01:39]} Nxd5 {[%emt 0:00:51]} 20. Qf3 {[%emt 0:00:12]} Ne7 {[%emt 0:04:10]} 21. Bxg5 {[%emt 0:02:37]} hxg5 {[%emt 0:00:11]} 22. Nxe7+ {[%emt 0:00:41]} Qxe7 {[%emt 0:00:14]} 23. Rae1 {[%emt 0:00:32]} Qd6 {[%emt 0:01:19]} 24. Re5 {[%emt 0:01:46]} f6 {[%emt 0:09:11]} 25. Qd5+ {[%emt 0:01:54]} Qxd5 {[%emt 0:06:45]} 26. Rxd5 {[%emt 0:00:01]} a4 {[%emt 0:00:14]} 27. Rc5 {[%emt 0:02:09]} Rfb8 {[%emt 0:01:29]} 28. Rf2 {[%emt 0:01:49]} Rb7 {[%emt 0:02:18]} 29. Re2 {[%emt 0:01:36]} Kf7 {[%emt 0:01:18]} 30. Kf2 {[%emt 0:01:33]} Re8 {[%emt 0:07:02]} 31. Rd2 {[%emt 0:02:41]} Reb8 {[%emt 0:00:39]} 32. Ke3 {[%emt 0:00:47]} Ke7 {[%emt 0:00:23]} 33. Rc4 {[%emt 0:00:46]} Kd6 {[%emt 0:00:37]} 34. Rxa4 {[%emt 0:00:15]} Rxb2 {[%emt 0:00:09]} 35. Ra2 {[%emt 0:01:35]} Rb1 {[%emt 0:01:03]} 36. Kd3 {[%emt 0:00:47]} Rg1 {[%emt 0:00:33]} 37. Ra6+ {[%emt 0:02:12]} Kd7 {[%emt 0:01:00]} 38. Kc4 {[%emt 0:00:34]} Rg3 {[%emt 0:00:46]} 39. Re2 {[%emt 0:01:04]} Re8 {[%emt 0:02:42]} 40. Rxe8 {[%emt 0:00:00]} Kxe8 {[%emt 0:00:00]} 41. Ra8+ {[%emt 0:00:46]} Kd7 {[%emt 0:02:57]} 42. Rg8 {[%emt 0:02:35]} Rxh3 {[%emt 0:00:34]} 43. Rxg7+ {[%emt 0:00:07]} Kd6 {[%emt 0:00:12]} 44. Rf7 {[%emt 0:00:22]} Rf3 {[%emt 0:00:41]} 45. Kb4 {[%emt 0:01:32]} Rf4 {[%emt 0:01:26]} 46. Kb5 {[%emt 0:01:51]} c6+ {[%emt 0:04:18]} 47. Kb6 {[%emt 0:01:27]} Rf1 {[%emt 0:06:20]} 48. Kb7 {[%emt 0:01:10]} Rb1+ {[%emt 0:00:49]} 49. Kc8 {[%emt 0:00:17]} Ke6 {[%emt 0:01:11]} 50. Rc7 {[%emt 0:03:07]} Kd6 {[%emt 0:03:05]} 51. c4 {[%emt 0:00:13]} Rd1 {[%emt 0:03:57]} 52. Rd7+ {[%emt 0:01:54]} Ke6 {[%emt 0:01:14]} 53. Kc7 {[%emt 0:00:17]} c5 {[%emt 0:01:25]} 54. Rd6+ {[%emt 0:01:32]} Ke7 {[%emt 0:00:21]} 55. dxc5 {[%emt 0:00:02]} Ra1 {[%emt 0:01:53]} 56. Rd4 {[%emt 0:00:23]} f5 {[%emt 0:05:59]} 57. gxf5 {[%emt 0:00:30]} Kf6 {[%emt 0:00:00]} 58. c6 {[%emt 0:00:36]} Kxf5 {[%emt 0:00:10]} 59. Kd7 {[%emt 0:00:11]} g4 {[%emt 0:01:03]} 60. c7 {[%emt 0:00:48]} g3 {[%emt 0:03:10]} 61. c8=Q {[%emt 0:00:19]} 1-0

[Event "IIFL Wealth 4th Mumbai Open"]
[Site "Mumbai"]
[Date "2019.01.03"]
[Round "5"]
[White "Aditya, Varun Gampa"]
[Black "Deepak, Rai"]
[Result "*"]
[ECO "B07"]
[WhiteElo "1809"]
[BlackElo "1710"]
[Annotator "NA"]
[PlyCount "26"]
[EventDate "2018.12.30"]
[EventType "swiss"]
[EventCountry "IND"]
[SourceTitle "playchess.com"]
[Source "ChessBase"]
[SourceQuality "1"]
[TimeControl "40/5400+30:1800+30"]

1. e4 {[%emt 0:00:17]} d6 {[%emt 0:00:00]} 2. d4 {[%emt 0:00:16]} Nf6 {[%emt 0:00:09]} 3. Nc3 {[%emt 0:00:13]} Nbd7 {[%emt 0:00:22]} 4. g4 {[%emt 0:00:12]} h6 {[%emt 0:02:17]} 5. h3 {[%emt 0:00:28]} e5 {[%emt 0:02:42]} 6. Nge2 {[%emt 0:03:22]} b5 {[%emt 0:03:07]} 7. a3 {[%emt 0:01:45]} Bb7 {[%emt 0:04:11]} 8. Bg2 {[%emt 0:00:34]} a5 {[%emt 0:07:12]} 9. Ng3 {[%emt 0:03:20]} b4 {[%emt 0:06:49]} 10. Nce2 d5 {[%emt 0:06:53]} 11. exd5 {[%emt 0:04:06]} Bxd5 {[%emt 0:03:00]} 12. Bf3 Be4 13. Bxe4 {[%emt 0:02:08]} Nd5 {[%emt 0:00:49]} *

[Event "IIFL Wealth 4th Mumbai Open"]
[Site "Mumbai"]
[Date "2019.01.03"]
[Round "5"]
[White "Barde, Om"]
[Black "Sheikh Jahan"]
[Result "0-1"]
[ECO "B06"]
[WhiteElo "1801"]
[BlackElo "1526"]
[Annotator "NA"]
[PlyCount "158"]
[EventDate "2018.12.30"]
[EventType "swiss"]
[EventCountry "IND"]
[SourceTitle "playchess.com"]
[Source "ChessBase"]
[SourceQuality "1"]
[TimeControl "40/5400+30:1800+30"]

1. e4 g6 2. d4 Bg7 3. c3 d6 4. Bd3 Nf6 5. Bf1 Ng8 6. Bd3 Nf6 7. Bf1 Ng8 8. Bd3 Nf6 9. Bf1 Ng8 10. Bd3 Nf6 11. Bf1 Ng8 12. Bd3 Nf6 13. Bf1 Ng8 14. Bd3 Nf6 15. Ne2 Nc6 16. O-O e5 17. d5 Ne7 18. c4 O-O 19. Nbc3 Nh5 20. Nb1 Nf6 21. Nbc3 Nh5 22. Nb1 Nf6 23. Nbc3 Nh5 24. Nb1 Nf6 25. Nbc3 Nh5 26. Nb1 Nf6 27. Nbc3 Nh5 28. Nb1 Nf6 29. Nbc3 Nh5 30. Nb1 Nf6 31. Nbc3 Nh5 32. Nb1 Nf6 33. Nbc3 Nh5 34. Be3 f5 35. f3 f4 36. Bf2 g5 37. Rc1 Nf6 38. Ra1 Nh5 39. Rc1 Nf6 40. c5 Rf7 41. cxd6 cxd6 42. Nb5 Ng6 43. Nbc3 Ne7 44. Nb5 Ng6 45. Nbc3 Ne7 46. Nb5 Ng6 47. Nbc3 Ne7 48. Nb5 Ng6 49. Qc2 Ne8 50. Qd1 Nf6 51. Qc2 Ne8 52. Qd1 Nf6 53. Qc2 Ne8 54. Qd1 Nf6 55. Qc2 Ne8 56. Qd1 Nf6 57. Qc2 Ne8 58. Qd1 Nf6 59. Qc2 Ne8 60. Qd1 Nf6 61. Qc2 Ne8 62. Qd1 Nf6 63. Qc2 Ne8 64. Qd1 Nf6 65. Qc2 Ne8 66. Qd1 Nf6 67. Qc2 Ne8 68. Qd1 Nf6 69. Qc2 Ne8 70. Nxa7 Bd7 71. Nb5 Bc8 72. Na7 Bd7 73. Nb5 Bc8 74. Na7 Bd7 75. Qb3 Bc8 76. Qc2 Bd7 77. Qb3 Bc8 78. Qc2 Bd7 79. Qb3 g4 0-1

[Event "IIFL Wealth 4th Mumbai Open"]
[Site "Mumbai"]
[Date "2019.01.03"]
[Round "5"]
[White "Abhinessh, S."]
[Black "Samrat, Ghorai"]
[Result "1/2-1/2"]
[ECO "B40"]
[WhiteElo "1790"]
[BlackElo "1984"]
[Annotator "NA"]
[PlyCount "163"]
[EventDate "2018.12.30"]
[EventType "swiss"]
[EventCountry "IND"]
[SourceTitle "playchess.com"]
[Source "ChessBase"]
[SourceQuality "1"]
[TimeControl "40/5400+30:1800+30"]

1. e4 {[%emt 0:00:00]} c5 {[%emt 0:00:00]} 2. Nf3 {[%emt 0:00:00]} e6 {[%emt 0:00:00]} 3. c3 {[%emt 0:00:28]} d5 {[%emt 0:00:00]} 4. exd5 {[%emt 0:00:27]} exd5 {[%emt 0:00:03]} 5. d4 {[%emt 0:00:32]} Nc6 {[%emt 0:00:08]} 6. Be3 {[%emt 0:00:56]} Qb6 {[%emt 0:00:15]} 7. b3 {[%emt 0:04:31]} Nf6 {[%emt 0:02:27]} 8. Be2 {[%emt 0:01:23]} Bd6 {[%emt 0:09:07]} 9. O-O {[%emt 0:09:15]} O-O {[%emt 0:01:00]} 10. h3 {[%emt 0:05:32]} Re8 {[%emt 0:06:28]} 11. Nbd2 {[%emt 0:14:56]} h6 {[%emt 0:29:33]} 12. a4 {[%emt 0:05:46]} a5 {[%emt 0:06:54]} 13. Bb5 {[%emt 0:01:04]} Bd7 {[%emt 0:00:26]} 14. Qb1 {[%emt 0:20:37]} Re7 {[%emt 0:15:49]} 15. Qb2 {[%emt 0:01:29]} Rae8 {[%emt 0:02:03]} 16. Rac1 {[%emt 0:12:01]} cxd4 {[%emt 0:07:20]} 17. Nxd4 {[%emt 0:01:48]} Nxd4 {[%emt 0:00:14]} 18. Bxd4 {[%emt 0:00:47]} Bc5 {[%emt 0:00:06]} 19. Bxc5 {[%emt 0:06:16]} Qxc5 {[%emt 0:00:06]} 20. Bd3 {[%emt 0:00:11]} Nh5 {[%emt 0:01:19]} 21. Nf3 {[%emt 0:02:58]} Ng3 {[%emt 0:12:03]} 22. Rfe1 {[%emt 0:01:32]} Bf5 {[%emt 0:00:20]} 23. b4 {[%emt 0:07:17]} Qb6 {[%emt 0:00:36]} 24. Bb5 {[%emt 0:00:25]} Bd7 {[%emt 0:01:46]} 25. Bd3 {[%emt 0:01:39]} Ne4 {[%emt 0:01:45]} 26. Bxe4 {[%emt 0:00:22]} dxe4 {[%emt 0:00:06]} 27. Nd4 {[%emt 0:00:17]} axb4 {[%emt 0:01:21]} 28. Qxb4 {[%emt 0:00:37]} Qxb4 {[%emt 0:00:57]} 29. cxb4 {[%emt 0:00:05]} Bxa4 {[%emt 0:00:10]} 30. Nf5 {[%emt 0:01:03]} Re6 {[%emt 0:00:18]} 31. Rc7 {[%emt 0:00:33]} Bc6 {[%emt 0:01:58]} 32. Rb1 {[%emt 0:00:26]} Bd5 {[%emt 0:00:40]} 33. Rd1 {[%emt 0:00:34]} Bc6 {[%emt 0:00:22]} 34. Rb1 {[%emt 0:00:16]} Re5 {[%emt 0:00:40]} 35. Nd6 {[%emt 0:00:40]} R8e7 {[%emt 0:00:07]} 36. Rxe7 {[%emt 0:00:28]} Rxe7 {[%emt 0:00:00]} 37. b5 {[%emt 0:00:16]} Bd5 {[%emt 0:00:31]} 38. Rd1 {[%emt 0:00:40]} Bb3 {[%emt 0:00:34]} 39. Rc1 {[%emt 0:00:34]} g6 {[%emt 0:01:14]} 40. Rc3 {[%emt 0:00:00]} Bd5 {[%emt 0:00:00]} 41. Rc5 {[%emt 0:01:19]} Bb3 {[%emt 0:03:44]} 42. Rc3 {[%emt 0:02:15]} Ba2 {[%emt 0:02:54]} 43. Rc2 Be6 {[%emt 0:08:31]} 44. b6 {[%emt 0:14:17]} Rd7 {[%emt 0:01:43]} 45. Nxe4 {[%emt 0:05:32]} Rd1+ {[%emt 0:00:04]} 46. Kh2 {[%emt 0:00:08]} Bf5 {[%emt 0:00:06]} 47. Nf6+ {[%emt 0:05:29]} Kg7 {[%emt 0:00:09]} 48. Ne8+ {[%emt 0:00:07]} Kf8 {[%emt 0:00:08]} 49. Re2 {[%emt 0:00:53]} Rb1 {[%emt 0:04:10]} 50. Nd6 {[%emt 0:01:00]} Rxb6 {[%emt 0:00:26]} 51. Nxf5 {[%emt 0:00:48]} gxf5 {[%emt 0:00:01]} 52. Re5 {[%emt 0:00:21]} Rf6 {[%emt 0:05:28]} 53. Kg3 {[%emt 0:00:34]} Kg7 {[%emt 0:00:35]} 54. Kf4 {[%emt 0:01:21]} Kg6 {[%emt 0:00:08]} 55. Rb5 {[%emt 0:00:28]} b6 {[%emt 0:00:17]} 56. h4 {[%emt 0:01:14]} Rc6 {[%emt 0:04:48]} 57. h5+ {[%emt 0:01:28]} Kxh5 {[%emt 0:00:06]} 58. Kxf5 {[%emt 0:01:18]} Rg6 {[%emt 0:04:58]} 59. Kf4+ {[%emt 0:01:04]} Kh4 {[%emt 0:00:52]} 60. Rb1 {[%emt 0:00:55]} Rf6+ {[%emt 0:00:23]} 61. Ke3 {[%emt 0:00:30]} Kg5 {[%emt 0:00:37]} 62. Rb5+ {[%emt 0:00:06]} Kg6 {[%emt 0:00:20]} 63. g4 {[%emt 0:00:25]} Rd6 {[%emt 0:00:20]} 64. Ke4 {[%emt 0:00:31]} Kf6 {[%emt 0:00:15]} 65. Rf5+ {[%emt 0:00:35]} Ke7 {[%emt 0:00:36]} 66. f4 {[%emt 0:00:32]} Re6+ {[%emt 0:00:22]} 67. Kf3 {[%emt 0:00:46]} Rf6 {[%emt 0:01:41]} 68. Rd5 {[%emt 0:00:29]} Rc6 {[%emt 0:00:13]} 69. Rh5 {[%emt 0:00:40]} Kd7 {[%emt 0:00:25]} 70. Rd5+ {[%emt 0:00:21]} Rd6 {[%emt 0:00:54]} 71. Rf5 {[%emt 0:00:07]} Ke7 {[%emt 0:00:48]} 72. Re5+ {[%emt 0:00:09]} Kd7 {[%emt 0:00:03]} 73. Rf5 {[%emt 0:00:04]} f6 {[%emt 0:00:45]} 74. Rh5 {[%emt 0:00:24]} Ke6 {[%emt 0:00:50]} 75. Rxh6 {[%emt 0:00:20]} b5 {[%emt 0:00:24]} 76. g5 {[%emt 0:00:22]} Kf7 {[%emt 0:00:21]} 77. f5 {[%emt 0:02:03]} Kg7 {[%emt 0:00:30]} 78. Rg6+ {[%emt 0:00:25]} Kf7 {[%emt 0:00:04]} 79. Rxf6+ {[%emt 0:00:27]} Rxf6 {[%emt 0:00:09]} 80. gxf6 {[%emt 0:00:06]} Kxf6 {[%emt 0:00:06]} 81. Ke4 {[%emt 0:00:03]} b4 {[%emt 0:00:11]} 82. Kd4 {[%emt 0:00:09]} 1/2-1/2

[Event "IIFL Wealth 4th Mumbai Open"]
[Site "Mumbai"]
[Date "2019.01.03"]
[Round "5"]
[White "Boramanikar, Tanisha S"]
[Black "Negi Augustiya"]
[Result "1-0"]
[ECO "C65"]
[WhiteElo "1782"]
[BlackElo "1521"]
[Annotator "NA"]
[PlyCount "99"]
[EventDate "2018.12.30"]
[EventType "swiss"]
[EventCountry "IND"]
[SourceTitle "playchess.com"]
[Source "ChessBase"]
[SourceQuality "1"]
[TimeControl "40/5400+30:1800+30"]

1. e4 {[%emt 0:00:00]} e5 {[%emt 0:00:00]} 2. Nf3 {[%emt 0:00:00]} Nc6 {[%emt 0:00:00]} 3. Bb5 {[%emt 0:00:00]} Nf6 {[%emt 0:00:00]} 4. O-O {[%emt 0:01:20]} Bc5 5. Re1 {[%emt 0:13:42]} d6 {[%emt 0:02:03]} 6. c3 {[%emt 0:00:13]} O-O 7. d4 {[%emt 0:01:30]} exd4 {[%emt 0:02:26]} 8. cxd4 {[%emt 0:00:11]} Bb4 {[%emt 0:00:43]} 9. Nc3 {[%emt 0:04:54]} Bg4 {[%emt 0:02:33]} 10. Bxc6 {[%emt 0:03:54]} bxc6 {[%emt 0:00:08]} 11. Qd3 {[%emt 0:00:35]} h6 {[%emt 0:05:18]} 12. a3 {[%emt 0:01:15]} Ba5 {[%emt 0:02:23]} 13. Bf4 {[%emt 0:02:27]} Re8 {[%emt 0:04:37]} 14. e5 {[%emt 0:01:04]} Nd5 {[%emt 0:05:15]} 15. Bg3 {[%emt 0:01:57]} Bxc3 {[%emt 0:07:57]} 16. bxc3 {[%emt 0:00:46]} Qd7 {[%emt 0:02:11]} 17. c4 {[%emt 0:00:31]} Ne7 {[%emt 0:01:52]} 18. Qc3 {[%emt 0:09:20]} Ng6 {[%emt 0:06:42]} 19. h3 {[%emt 0:05:40]} Bf5 {[%emt 0:04:03]} 20. Qa5 {[%emt 0:09:57]} Be6 {[%emt 0:10:12]} 21. d5 {[%emt 0:02:08]} cxd5 {[%emt 0:02:56]} 22. cxd5 {[%emt 0:00:29]} Bf5 {[%emt 0:01:15]} 23. exd6 {[%emt 0:00:55]} cxd6 {[%emt 0:01:28]} 24. Nd4 {[%emt 0:00:44]} Ne5 {[%emt 0:03:38]} 25. Bxe5 {[%emt 0:00:54]} dxe5 {[%emt 0:03:02]} 26. Nc6 {[%emt 0:00:18]} Qd6 {[%emt 0:02:03]} 27. Rac1 {[%emt 0:09:57]} Bd7 {[%emt 0:05:33]} 28. Rc3 {[%emt 0:00:29]} Bxc6 {[%emt 0:03:54]} 29. Rxc6 Qd8 {[%emt 0:02:29]} 30. Qc5 {[%emt 0:01:22]} Qd7 {[%emt 0:01:39]} 31. Rc7 {[%emt 0:01:10]} Qa4 {[%emt 0:05:47]} 32. d6 {[%emt 0:01:14]} Red8 {[%emt 0:05:09]} 33. Qxe5 {[%emt 0:11:02]} Rd7 {[%emt 0:01:17]} 34. Qd5 {[%emt 0:03:29]} Rad8 {[%emt 0:02:59]} 35. Rxd7 {[%emt 0:00:25]} Qxd7 {[%emt 0:02:00]} 36. Re7 {[%emt 0:00:35]} Qxe7 {[%emt 0:00:17]} 37. dxe7 {[%emt 0:00:02]} Rxd5 {[%emt 0:00:01]} 38. e8=Q+ {[%emt 0:00:06]} Kh7 {[%emt 0:00:08]} 39. Qe4+ {[%emt 0:00:14]} Kg8 {[%emt 0:00:03]} 40. Qxd5 {[%emt 0:00:00]} g6 {[%emt 0:00:00]} 41. Qa8+ {[%emt 0:00:19]} Kg7 {[%emt 0:00:09]} 42. Qxa7 {[%emt 0:00:09]} h5 {[%emt 0:00:02]} 43. a4 {[%emt 0:00:19]} g5 {[%emt 0:00:06]} 44. a5 {[%emt 0:00:16]} Kg6 {[%emt 0:00:05]} 45. a6 {[%emt 0:00:06]} f6 {[%emt 0:00:08]} 46. Qe7 {[%emt 0:00:15]} Kf5 {[%emt 0:00:03]} 47. a7 {[%emt 0:00:07]} g4 {[%emt 0:00:02]} 48. a8=Q {[%emt 0:00:14]} gxh3 {[%emt 0:00:06]} 49. Qae4+ {[%emt 0:00:10]} Kg5 {[%emt 0:00:01]} 50. Qg7# {[%emt 0:00:10]} 1-0